bitfinex/quotes_SOLUSD_20240705
["timestamp","ask_amount","ask_price","bid_price","bid_amount"]
[1720163761667,56.6974,126.12,125.93,115.4202]
[1720163761668,1.6784,126.1,125.94,100.0]
[1720163761867,41.08,126.08,125.92,8.29364385]
[1720163762189,1.6784,126.06,125.89,100.0]
[1720163762377,0.17,126.05,125.89,100.0]
[1720163762575,0.79434427,125.9,125.89,100.0]
[1720163763291,0.79434427,125.9,125.89,108.30129824]
[1720163763586,0.79434427,125.9,125.87,100.0]
[1720163763965,0.79434427,125.9,125.88,3.17985]
[1720163764167,0.79434427,125.9,125.85,100.0]
[1720163764364,0.79434427,125.9,125.87,100.0]
[1720163764668,0.79434427,125.9,125.89,100.0]
[1720163764876,0.79434427,125.9,125.86,108.30413631]
[1720163765493,0.79434427,125.9,125.86,8.30413631]
[1720163765690,0.79434427,125.9,125.84,100.0]
[1720163766894,0.79434427,125.9,125.86,100.0]
[1720163767681,0.79434427,125.9,125.85,8.30505392]
[1720163767682,0.79434427,125.9,125.88,100.0]
[1720163767994,0.79434427,125.9,125.87,0.17]
[1720163768194,0.79434427,125.9,125.88,100.0]
[1720163768365,0.79434427,125.9,125.89,20.17]
[1720163768766,0.79434427,125.9,125.89,120.17]
[1720163769995,1.6784,126.01,125.93,100.0]
[1720163770991,16.2474,126.02,125.94,0.17]
[1720163771770,1.6784,126.05,125.94,0.17]
[1720163771972,1.6784,126.05,125.95,100.0]
[1720163772401,1.6784,126.05,125.96,0.17]
[1720163773106,16.0208,126.08,125.98,100.0]
[1720163773310,16.0208,126.08,125.99,0.17]
[1720163773469,16.0208,126.08,126.0,100.0]
[1720163773667,16.0208,126.08,125.99,20.17]
[1720163773668,16.0208,126.08,125.99,0.17]
[1720163773970,16.0208,126.08,125.94,100.0]
[1720163774173,16.0208,126.08,125.96,200.0]
[1720163774408,16.0208,126.08,125.97,0.17]
[1720163774904,16.0208,126.08,125.97,20.17]
[1720163775076,16.0208,126.08,125.98,100.0]
[1720163775405,16.0208,126.08,125.97,20.0]
[1720163775573,16.0208,126.08,125.92,100.0]
[1720163776005,1.6784,126.07,125.91,255.3]
[1720163776209,25.5284,126.07,125.91,255.3]
[1720163776516,20.0,126.06,125.91,255.3]
[1720163776683,0.17,126.05,125.91,255.3]
[1720163777076,15.17,126.05,125.87,100.0]
[1720163777388,16.6788,126.01,125.86,6.5181]
[1720163777711,0.17,126.0,125.85,100.0]
[1720163777874,0.17,126.0,125.85,108.30391298]
[1720163778070,20.17,126.0,125.85,108.30391298]
[1720163778905,20.17,126.0,125.85,208.30391298]
[1720163779277,0.17,126.0,125.87,100.0]
[1720163779677,0.17,126.0,125.88,20.0]
[1720163779877,16.6788,126.01,125.89,100.0]
[1720163780399,16.6788,126.01,125.88,20.0]
[1720163780591,16.6788,126.01,125.89,100.0]
[1720163780915,16.6788,126.01,125.9,0.17]
[1720163783193,0.79428118,125.92,125.9,0.17]
[1720163783512,0.79428118,125.92,125.91,100.0]
[1720163783803,0.79428118,125.92,125.91,206.7646]
[1720163784005,0.79428118,125.92,125.91,226.7646]
[1720163784211,0.79428118,125.92,125.91,126.7646]
[1720163784789,0.79428118,125.92,125.91,0.17]
[1720163784999,0.79428118,125.92,125.86,9.75476737]
[1720163785311,0.79428118,125.92,125.82,1.38310849]
[1720163785312,0.79428118,125.92,125.82,100.0]
[1720163785505,0.79428118,125.92,125.81,100.1]
[1720163787106,0.79428118,125.92,125.81,0.1]
[1720163787316,0.17,125.91,125.81,0.1]
[1720163789223,0.79428118,125.92,125.81,0.1]
[1720163789725,0.17,125.91,125.81,0.1]
[1720163790019,0.79428118,125.92,125.81,0.1]
[1720163790195,0.17,125.91,125.81,0.1]
[1720163790392,0.79428118,125.92,125.81,0.1]
[1720163792309,0.79428118,125.92,125.81,100.1]
[1720163792618,0.79428118,125.92,125.82,0.17]
[1720163792794,0.79428118,125.92,125.81,0.1]
[1720163793301,0.79428118,125.92,125.83,100.0]
[1720163793503,0.79428118,125.92,125.85,100.0]
[1720163794115,0.79428118,125.92,125.87,100.0]
[1720163794428,0.79428118,125.92,125.88,0.17]
[1720163795226,0.79428118,125.92,125.89,100.0]
[1720163795424,0.79428118,125.92,125.9,0.17]
[1720163796427,0.79428118,125.92,125.89,0.17]
[1720163796742,0.79428118,125.92,125.85,100.0]
[1720163797025,0.79428118,125.92,125.86,20.17]
[1720163797429,0.79428118,125.92,125.86,0.17]
[1720163797605,0.79428118,125.92,125.81,115.3786]
[1720163798012,0.79428118,125.92,125.81,100.1]
[1720163799014,0.79428118,125.92,125.82,20.0]
[1720163799220,1.6784,125.91,125.82,20.0]
[1720163799411,1.6784,125.91,125.81,100.1]
[1720163799808,1.6784,125.91,125.82,100.0]
[1720163800029,1.6784,125.91,125.81,100.1]
[1720163800431,1.6784,125.91,125.83,100.0]
[1720163800732,1.6784,125.91,125.81,0.1]
[1720163800932,1.6784,125.91,125.81,20.1]
[1720163801133,1.6784,125.91,125.82,0.17]
[1720163803211,0.79428118,125.83,125.82,0.17]
[1720163803615,0.79428118,125.83,125.81,0.27]
[1720163804040,0.79428118,125.83,125.81,20.27]
[1720163805532,0.79428118,125.83,125.82,100.0]
[1720163805740,0.79428118,125.83,125.82,120.17]
[1720163806109,15.8456,125.93,125.87,100.0]
[1720163806315,15.8456,125.93,125.85,100.0]
[1720163806620,15.8456,125.93,125.87,100.0]
[1720163807017,15.8456,125.93,125.86,20.0]
[1720163807526,15.8456,125.93,125.85,20.0]
[1720163808141,15.8456,125.93,125.81,0.1]
[1720163809646,15.8456,125.93,125.82,100.0]
[1720163810141,15.8456,125.93,125.81,0.1]
[1720163810447,15.8456,125.93,125.82,100.0]
[1720163810650,15.8456,125.93,125.81,20.1]
[1720163810949,15.8456,125.93,125.82,0.17]
[1720163811149,15.8456,125.93,125.82,100.17]
[1720163811354,15.8456,125.93,125.84,100.0]
[1720163811656,15.8456,125.93,125.82,0.17]
[1720163812325,15.8456,125.93,125.81,20.1]
[1720163812531,0.17,125.92,125.81,20.1]
[1720163812722,0.17,125.92,125.81,0.1]
[1720163812920,1.6784,125.91,125.81,0.1]
[1720163813343,0.17,125.9,125.81,0.1]
[1720163815335,15.1948,125.89,125.81,0.1]
[1720163815554,0.17,125.88,125.81,0.1]
[1720163816134,15.1948,125.89,125.81,0.1]
[1720163817261,15.1948,125.89,125.81,100.1]
[1720163817561,15.1948,125.89,125.82,0.17]
[1720163820243,15.1948,125.89,125.81,100.27]
[1720163820974,15.1948,125.89,125.83,100.0]
[1720163821161,15.1948,125.89,125.84,20.17]
[1720163821882,15.1948,125.89,125.85,100.0]
[1720163822041,15.784,125.93,125.86,0.17]
[1720163822243,15.784,125.93,125.87,100.0]
[1720163822765,15.784,125.93,125.88,0.17]
[1720163822970,15.4902,125.97,125.89,100.0]
[1720163823149,15.4902,125.97,125.9,20.17]
[1720163823642,15.4902,125.97,125.85,100.0]
[1720163823944,15.4902,125.97,125.86,20.0]
[1720163824557,0.17,125.96,125.84,120.0]
[1720163825373,0.17,125.96,125.85,0.17]
[1720163825589,0.17,125.96,125.82,100.0]
[1720163825590,15.5438,125.94,125.82,100.0]
[1720163826477,1.6784,125.92,125.81,0.1]
[1720163826769,0.17,125.91,125.81,0.1]
[1720163827076,1.6784,125.92,125.81,0.1]
[1720163827478,1.6784,125.92,125.82,200.0]
[1720163828375,1.6784,125.92,125.84,100.0]
[1720163828577,1.6784,125.92,125.85,20.17]
[1720163830556,1.6784,125.92,125.86,100.0]
[1720163830750,1.6784,125.92,125.87,0.17]
[1720163831891,1.6784,125.92,125.86,0.17]
[1720163832261,15.5438,125.94,125.88,100.0]
[1720163832583,1.6784,125.96,125.89,0.17]
[1720163832782,1.6784,125.96,125.89,20.17]
[1720163833291,15.0007,125.99,125.9,100.0]
[1720163833591,1.6784,125.98,125.91,0.17]
[1720163834952,1.6784,125.98,125.91,20.17]
[1720163835171,1.6784,125.98,125.92,100.0]
[1720163835365,1.6784,125.98,125.93,0.17]
[1720163835564,1.6784,125.98,125.91,20.0]
[1720163835776,1.6784,125.98,125.9,20.17]
[1720163836154,1.6784,125.98,125.9,0.17]
[1720163836360,1.6784,125.98,125.9,100.17]
[1720163836685,1.6784,125.98,125.91,20.0]
[1720163836875,1.6784,125.98,125.92,0.17]
[1720163838179,1.6784,125.98,125.91,20.0]
[1720163838558,1.6784,125.98,125.9,0.17]
[1720163839405,1.6784,125.98,125.9,100.17]
[1720163839587,1.6784,125.98,125.91,20.0]
[1720163840989,1.6784,125.98,125.92,100.17]
[1720163841171,15.0007,125.99,125.93,20.0]
[1720163841382,15.0007,125.99,125.94,0.17]
[1720163841893,1.6784,126.01,125.94,200.17]
[1720163842191,16.6665,126.03,125.96,100.0]
[1720163842486,16.6665,126.03,125.97,20.17]
[1720163842919,16.6665,126.03,125.97,0.17]
[1720163843279,0.79383981,125.98,125.97,0.17]
[1720163843679,0.79383981,125.98,125.93,100.0]
[1720163843881,0.79383981,125.98,125.95,100.0]
[1720163844074,0.79383981,125.98,125.97,100.0]
[1720163844272,0.79383981,125.98,125.97,120.17]
[1720163844486,1.6784,126.05,126.01,100.0]
[1720163844691,1.6784,126.05,125.99,100.0]
[1720163844871,1.6784,126.05,126.0,20.17]
[1720163845073,17.2081,126.08,126.01,100.0]
[1720163845402,17.2081,126.08,126.0,120.17]
[1720163845403,17.1067,126.14,126.03,100.0]
[1720163845610,17.1067,126.14,126.05,100.0]
[1720163845897,17.1067,126.14,126.06,0.17]
[1720163846101,17.1067,126.14,126.06,20.17]
[1720163846272,17.1067,126.14,126.07,100.0]
[1720163847313,17.1067,126.14,126.06,20.17]
[1720163848191,17.1067,126.14,126.07,100.0]
[1720163848407,17.1067,126.14,126.08,0.17]
[1720163848880,17.1067,126.14,126.06,20.0]
[1720163849081,17.1067,126.14,126.03,200.0]
[1720163849281,17.1067,126.14,126.04,0.17]
[1720163849484,17.1067,126.14,126.05,100.0]
[1720163849711,17.1067,126.14,126.06,0.17]
[1720163850443,17.1067,126.14,126.04,20.0]
[1720163850444,17.1067,126.14,126.05,0.17]
[1720163850589,17.1067,126.14,126.05,100.17]
[1720163851203,17.1067,126.14,126.07,100.0]
[1720163851724,17.1067,126.14,126.05,100.17]
[1720163852008,17.1067,126.14,126.06,20.0]
[1720163852190,17.1067,126.14,126.07,0.17]
[1720163852787,17.1067,126.14,126.07,100.17]
[1720163858043,17.1067,126.14,126.07,0.17]
[1720163858822,16.0334,126.17,126.07,200.17]
[1720163859016,16.0334,126.17,126.07,100.17]
[1720163859622,16.0334,126.17,126.09,100.0]
[1720163860329,16.0334,126.17,126.1,0.17]
[1720163861555,16.0334,126.17,126.09,0.17]
[1720163861855,16.0334,126.17,126.09,120.17]
[1720163862434,16.0334,126.17,126.11,100.0]
[1720163862730,16.0334,126.17,126.12,0.17]
[1720163863148,0.79289566,126.14,126.12,0.17]
[1720163863753,0.79289566,126.14,126.09,120.0]
[1720163863956,0.79289566,126.14,126.04,6.42217572]
[1720163864155,0.79289566,126.14,126.05,100.0]
[1720163864727,0.79289566,126.14,126.03,100.0]
[1720163864955,1.6784,126.13,126.03,100.0]
[1720163865633,1.6784,126.13,126.02,6.4499]
[1720163865838,15.583,126.12,126.01,100.0]
[1720163866834,15.583,126.12,125.99,355.3]
[1720163867433,1.6784,126.11,125.99,255.3]
[1720163867624,1.6784,126.11,125.99,455.3]
[1720163867830,1.6784,126.11,125.99,255.3]
[1720163868129,21.6784,126.11,125.99,255.3]
[1720163868335,0.17,126.1,125.99,255.3]
[1720163869150,1.6784,126.08,125.97,8.2900462]
[1720163869454,15.6023,126.07,125.92,200.0]
[1720163869652,20.0,126.06,125.94,100.0]
[1720163870231,20.0,126.06,125.93,8.29794445]
[1720163870435,1.6784,126.04,125.94,100.0]
[1720163871855,1.6784,126.04,125.95,0.17]
[1720163872637,1.6784,126.04,125.95,20.17]
[1720163875262,1.6784,126.04,125.93,8.29794445]
[1720163875463,15.3807,126.03,125.93,8.29794445]
[1720163875633,15.3807,126.03,125.9,365.76150277]
[1720163875833,15.3807,126.03,125.9,210.46150277]
[1720163876133,15.3807,126.03,125.92,100.0]
[1720163877161,15.3807,126.03,125.93,0.17]
[1720163878136,15.3807,126.03,125.94,100.0]
[1720163878339,15.3807,126.03,125.93,0.17]
[1720163879849,15.3807,126.03,125.91,20.0]
[1720163880165,15.3807,126.03,125.92,0.17]
[1720163880554,20.0,126.02,125.92,0.17]
[1720163880757,20.0,126.02,125.92,100.17]
[1720163881573,1.6784,126.01,125.9,18.76122886]
[1720163881749,1.6784,126.01,125.9,8.29972609]
[1720163881950,1.6784,126.01,125.88,100.0]
[1720163882154,16.4679,126.0,125.88,100.0]
[1720163882868,16.4679,126.0,125.89,0.17]
[1720163883067,16.4679,126.0,125.89,20.17]
[1720163883271,0.79289566,125.9,125.89,0.17]
[1720163883871,0.79289566,125.9,125.89,10.63150277]
[1720163884462,0.79289566,125.9,125.89,30.63150277]
[1720163884986,0.79289566,125.9,125.89,10.46150277]
[1720163885170,0.79289566,125.9,125.88,108.30153281]
[1720163885883,0.79289566,125.9,125.88,8.30153281]
[1720163886190,0.79289566,125.9,125.84,100.0]
[1720163886486,0.79289566,125.9,125.82,100.0]
[1720163886688,0.79289566,125.9,125.82,106.28265729]
[1720163886858,0.79289566,125.9,125.82,125.04948714]
[1720163887481,0.79289566,125.9,125.83,20.0]
[1720163887677,0.79289566,125.9,125.82,125.04948714]
[1720163888069,0.79289566,125.9,125.84,100.0]
[1720163888764,0.79289566,125.9,125.82,8.30532708]
[1720163888993,0.79289566,125.9,125.81,0.1]
[1720163889798,0.79289566,125.9,125.81,100.1]
[1720163889969,0.79289566,125.9,125.81,0.1]
[1720163890363,15.864,125.89,125.81,0.1]
[1720163894276,15.864,125.89,125.81,100.1]
[1720163894472,15.864,125.89,125.82,0.17]
[1720163895675,1.6784,125.88,125.81,0.1]
[1720163896191,21.6784,125.88,125.81,0.1]
[1720163897593,0.17,125.87,125.81,0.1]
[1720163898490,15.7342,125.86,125.81,0.1]
[1720163898689,20.0,125.85,125.81,0.1]
[1720163898980,15.7342,125.86,125.81,0.1]
[1720163900002,20.0,125.85,125.81,0.1]
[1720163900376,1.6784,125.84,125.79,0.8644209]
[1720163900988,1.6784,125.84,125.73,8.31184013]
[1720163901299,1.6784,125.84,125.71,100.1]
[1720163901300,0.17,125.83,125.71,100.1]
[1720163901499,15.5014,125.82,125.71,100.1]
[1720163901676,20.0,125.81,125.71,100.1]
[1720163903011,20.0,125.81,125.71,200.1]
[1720163903196,20.0,125.81,125.72,0.17]
[1720163903395,15.5014,125.82,125.73,100.0]
[1720163903588,15.5014,125.82,125.74,0.17]
[1720163903770,15.5014,125.82,125.72,0.17]
[1720163903974,15.5014,125.82,125.72,20.17]
[1720163904379,15.5014,125.82,125.73,100.0]
[1720163904579,15.5014,125.82,125.74,20.17]
[1720163905010,15.5014,125.82,125.74,0.17]
[1720163905189,15.5014,125.82,125.74,20.17]
[1720163907184,15.5014,125.82,125.74,0.17]
[1720163907379,15.5014,125.82,125.72,20.0]
[1720163908906,15.5014,125.82,125.73,100.0]
[1720163909288,15.5014,125.82,125.74,0.17]
[1720163909488,15.5014,125.82,125.72,20.0]
[1720163910000,15.5014,125.82,125.71,0.1]
[1720163910001,21.8484,125.81,125.71,0.1]
[1720163912216,21.6784,125.81,125.71,100.1]
[1720163912417,1.6784,125.81,125.73,100.0]
[1720163912709,1.6784,125.81,125.75,100.0]
[1720163912916,15.5014,125.82,125.75,100.0]
[1720163913093,1.6784,125.84,125.78,100.0]
[1720163913408,1.6784,125.84,125.79,0.17]
[1720163913789,1.6784,125.84,125.78,0.17]
[1720163914409,1.6784,125.84,125.77,20.0]
[1720163914611,1.6784,125.84,125.74,100.0]
[1720163914810,1.6784,125.84,125.75,20.17]
[1720163915198,1.6784,125.84,125.75,20.0]
[1720163915512,16.6556,125.82,125.71,355.4]
[1720163915691,16.6556,125.82,125.72,0.17]
[1720163915896,16.6556,125.82,125.73,100.0]
[1720163916089,16.6556,125.82,125.74,0.17]
[1720163916893,16.6556,125.82,125.75,100.0]
[1720163917089,16.6556,125.82,125.77,100.0]
[1720163917294,16.6556,125.82,125.78,0.17]
[1720163918421,1.6784,125.84,125.79,100.0]
[1720163918624,1.6784,125.84,125.76,120.0]
[1720163918919,1.6784,125.84,125.77,0.17]
[1720163919119,1.6784,125.84,125.76,20.0]
[1720163919296,1.6784,125.84,125.75,20.0]
[1720163919492,1.6784,125.84,125.75,100.0]
[1720163919712,1.6784,125.84,125.76,20.0]
[1720163920419,1.6784,125.84,125.77,0.17]
[1720163920810,1.6784,125.84,125.77,100.17]
[1720163922728,1.6784,125.84,125.77,100.0]
[1720163922899,1.6784,125.84,125.76,20.0]
[1720163923411,0.7951654,125.78,125.76,20.0]
[1720163924003,0.7951654,125.78,125.77,100.17]
[1720163924198,15.8004,125.86,125.79,100.0]
[1720163924416,15.8004,125.86,125.8,0.17]
[1720163924729,15.8004,125.86,125.8,20.17]
[1720163925234,15.8004,125.86,125.81,100.0]
[1720163925418,1.6784,125.87,125.82,0.17]
[1720163925933,15.4529,125.9,125.82,100.17]
[1720163926107,15.4529,125.9,125.85,100.0]
[1720163926304,1.6784,125.92,125.87,100.0]
[1720163926539,15.7522,125.93,125.88,1.74128731]
[1720163926706,15.7522,125.93,125.88,0.17]
[1720163927104,1.6784,125.95,125.88,120.17]
[1720163927305,15.6262,125.97,125.9,100.0]
[1720163927530,15.6262,125.97,125.91,20.17]
[1720163927901,1.6784,125.99,125.92,0.61373341]
[1720163928210,1.6784,125.99,125.93,1.75743386]
[1720163928533,15.6262,126.01,125.94,100.0]
[1720163928739,15.6262,126.01,125.95,0.17]
[1720163929241,1.6784,126.03,125.95,0.17]
[1720163929454,1.6784,126.03,125.95,20.17]
[1720163931816,1.6784,126.03,125.95,0.17]
[1720163932022,1.6784,126.03,125.93,20.0]
[1720163932023,1.6784,126.03,125.94,0.17]
[1720163932249,1.6784,126.03,125.94,100.17]
[1720163932440,1.6784,126.03,125.95,20.0]
[1720163932639,1.6784,126.03,125.96,1.75254743]
[1720163932842,20.0,126.04,125.96,100.17]
[1720163933223,16.2623,126.05,125.96,100.17]
[1720163933453,16.2623,126.05,125.96,0.17]
[1720163933622,16.2623,126.05,125.96,100.17]
[1720163933823,16.2623,126.05,125.96,0.17]
[1720163935239,16.2623,126.05,125.96,100.17]
[1720163935451,16.2623,126.05,125.96,0.17]
[1720163937339,0.17,126.04,125.93,20.0]
[1720163937539,20.17,126.04,125.92,100.0]
[1720163938231,20.0,126.04,125.94,100.0]
[1720163938748,20.0,126.04,125.95,0.17]
[1720163939056,20.0,126.04,125.96,100.0]
[1720163939251,20.0,126.04,125.97,0.17]
[1720163939547,16.2623,126.05,125.97,0.17]
[1720163939952,16.2623,126.05,125.93,120.0]
[1720163940151,0.17,126.04,125.93,100.0]
[1720163940360,16.2623,126.05,125.95,100.0]
[1720163940528,16.2623,126.05,125.93,100.0]
[1720163940862,16.2623,126.05,125.91,112.84570192]
[1720163941156,20.0,126.04,125.93,100.0]
[1720163941457,20.0,126.04,125.95,100.0]
[1720163941757,20.0,126.04,125.96,0.17]
[1720163941924,20.0,126.04,125.96,100.17]
[1720163942338,1.6784,126.07,125.98,100.0]
[1720163942539,16.0766,126.09,125.99,120.17]
[1720163942752,16.0766,126.09,126.01,100.0]
[1720163943264,0.79358782,126.03,126.02,20.17]
[1720163943975,0.79358782,126.03,126.02,120.17]
[1720163944666,0.1,126.09,126.03,100.0]
[1720163944873,0.1,126.09,126.04,20.17]
[1720163945038,0.1,126.09,125.99,100.0]
[1720163945235,0.1,126.09,126.01,100.0]
[1720163945439,0.1,126.09,126.03,100.0]
[1720163945874,0.1,126.09,126.05,100.0]
[1720163946073,0.1,126.09,126.0,120.0]
[1720163946241,0.1,126.09,126.02,100.0]
[1720163946571,0.1,126.09,125.98,29.1444206]
[1720163946572,0.1,126.09,126.04,100.0]
[1720163946870,0.1,126.09,126.03,20.0]
[1720163947035,0.1,126.09,126.04,0.17]
[1720163947438,0.1,126.09,126.05,100.0]
[1720163947673,0.1,126.09,126.06,0.17]
[1720163947967,0.8644209,126.11,126.09,100.0]
[1720163948465,0.8644209,126.11,126.1,0.17]
[1720163951160,0.8644209,126.11,126.09,100.17]
[1720163951747,0.8644209,126.11,126.06,6.016]
[1720163952062,0.8644209,126.11,126.05,100.0]
[1720163952542,0.8644209,126.11,126.05,200.0]
[1720163952747,0.8644209,126.11,126.07,100.0]
[1720163953263,0.8644209,126.11,126.05,100.0]
[1720163953445,0.8644209,126.11,126.06,0.17]
[1720163953953,0.8644209,126.11,126.06,20.0]
[1720163954156,0.8644209,126.11,126.05,100.0]
[1720163954357,0.8644209,126.11,126.07,100.0]
[1720163954669,0.8644209,126.11,126.05,100.0]
[1720163955360,16.2272209,126.11,126.01,215.0796]
[1720163955758,16.2272209,126.11,126.01,221.40320488]
[1720163955951,16.2272209,126.11,126.03,100.0]
[1720163957157,16.2272209,126.11,126.04,0.17]
[1720163958152,0.8644209,126.11,126.05,100.0]
[1720163958460,0.8644209,126.11,126.06,0.17]
[1720163958652,0.8644209,126.11,126.07,100.0]
[1720163958861,0.8644209,126.11,126.08,0.17]
[1720163959748,0.8644209,126.11,126.09,100.0]
[1720163959949,0.8644209,126.11,126.1,0.17]
[1720163960850,0.8644209,126.11,126.09,0.17]
[1720163961052,0.8644209,126.11,126.1,100.0]
[1720163961248,0.8644209,126.11,126.1,100.17]
[1720163963353,1.65744232,126.11,126.1,100.17]
[1720163964580,1.65744232,126.11,126.1,121.73040066]
[1720163965757,1.65744232,126.11,126.1,120.17]
[1720163967083,1.65744232,126.11,126.08,100.0]
[1720163967374,1.65744232,126.11,126.07,6.263]
[1720163968075,1.65744232,126.11,126.05,200.0]
[1720163968256,1.65744232,126.11,126.07,100.0]
[1720163968682,1.65744232,126.11,126.05,100.0]
[1720163968864,1.65744232,126.11,126.05,103.175057]
[1720163969751,1.65744232,126.11,126.05,100.0]
[1720163969953,1.65744232,126.11,126.03,100.0]
[1720163970372,1.65744232,126.11,126.03,106.34121081]
[1720163971378,1.65744232,126.11,126.05,100.0]
[1720163971585,1.65744232,126.11,126.03,106.34121081]
[1720163971883,1.65744232,126.11,126.05,100.0]
[1720163972378,1.65744232,126.11,126.06,0.17]
[1720163972590,1.65744232,126.11,126.07,100.0]
[1720163972883,1.65744232,126.11,126.06,0.17]
[1720163973087,1.65744232,126.11,126.03,100.0]
[1720163973262,1.65744232,126.11,126.04,20.17]
[1720163973456,1.65744232,126.11,126.01,112.47101534]
[1720163973861,1.6784,126.1,126.03,100.0]
[1720163974893,1.6784,126.1,126.04,0.17]
[1720163975972,1.6784,126.1,126.05,100.0]
[1720163976484,1.6784,126.1,126.04,0.17]
[1720163976485,1.65744232,126.11,126.04,0.17]
[1720163977201,1.65744232,126.11,126.02,100.0]
[1720163977496,16.4121,126.1,125.99,100.0]
[1720163977796,16.4121,126.1,126.01,100.0]
[1720163978380,16.4121,126.1,126.03,100.0]
[1720163978575,16.4121,126.1,126.05,100.0]
[1720163978794,16.4121,126.1,126.06,0.17]
[1720163979389,1.65744232,126.11,126.08,100.0]
[1720163979775,1.65744232,126.11,126.1,100.0]
[1720163980366,1.65744232,126.11,126.1,100.17]
[1720163981496,1.65744232,126.11,126.08,100.0]
[1720163981877,1.65744232,126.11,126.09,0.17]
[1720163982076,1.65744232,126.11,126.05,100.0]
[1720163982077,1.65744232,126.11,126.04,106.6551]
[1720163982294,1.65744232,126.11,126.06,100.0]
[1720163982597,1.65744232,126.11,126.08,100.0]
[1720163982780,1.65744232,126.11,126.1,100.0]
[1720163983701,1.65744232,126.11,126.1,100.17]
[1720163985476,1.65744232,126.11,126.08,100.0]
[1720163985786,1.65744232,126.11,126.09,0.17]
[1720163986600,1.65744232,126.11,126.05,100.0]
[1720163990778,1.65744232,126.11,126.06,0.17]
[1720163993806,1.65744232,126.11,126.05,100.0]
[1720163994608,18.0865,126.1,126.04,0.17]
[1720163994811,18.0865,126.1,126.03,100.0]
[1720163995909,18.0865,126.1,126.01,9.41283611]
[1720163996101,18.0865,126.1,125.99,100.0]
[1720163996308,18.0865,126.1,125.97,106.0917]
[1720163996309,20.0,126.09,125.97,106.0917]
[1720163996505,20.0,126.09,125.97,100.0]
[1720163997404,20.0,126.09,126.02,100.0]
[1720163997602,20.0,126.09,126.0,100.0]
[1720163998922,20.0,126.09,125.99,0.17]
[1720164000702,20.0,126.09,125.98,100.17]
[1720164002032,1.65744232,126.11,126.05,100.0]
[1720164002400,1.65744232,126.11,126.07,100.0]
[1720164002603,1.65744232,126.11,126.04,100.0]
[1720164002899,1.65744232,126.11,126.01,100.0]
[1720164003308,0.79302142,126.03,126.01,100.0]
[1720164003701,0.79302142,126.03,125.99,120.0]
[1720164003928,0.79302142,126.03,126.01,100.0]
[1720164004117,0.79302142,126.03,125.99,100.0]
[1720164004448,0.79302142,126.03,125.96,1.10595538]
[1720164004628,0.79302142,126.03,125.96,101.10595538]
[1720164004835,0.79302142,126.03,125.96,1.10595538]
[1720164005146,0.79302142,126.03,125.92,100.0]
[1720164005311,0.79302142,126.03,125.95,100.0]
[1720164005513,0.79302142,126.03,125.93,100.0]